bitfinex/quotes_BTCUSD_20240730
["timestamp","ask_amount","ask_price","bid_price","bid_amount"]
[1722363014544,0.02438073,65944.0,65943.0,0.02740116]
[1722363014743,0.32766773,65944.0,65943.0,0.014]
[1722363014979,0.47931073,65944.0,65943.0,0.014]
[1722363015439,0.78259773,65944.0,65943.0,0.014]
[1722363015878,0.78259773,65944.0,65933.0,0.00073905]
[1722363016082,0.02355073,65935.0,65934.0,0.1829245]
[1722363016284,0.00951589,65935.0,65934.0,0.1981163]
[1722363016541,0.00951589,65935.0,65934.0,0.3497823]
[1722363016749,0.00951589,65935.0,65934.0,0.2211163]
[1722363016986,0.00951589,65940.0,65939.0,0.151653]
[1722363017176,0.00951589,65940.0,65939.0,0.62859604]
[1722363017395,0.00951589,65940.0,65939.0,0.64374637]
[1722363017604,0.00951589,65940.0,65939.0,0.94705637]
[1722363017750,0.00951589,65940.0,65939.0,0.97934783]
[1722363017950,0.00951589,65940.0,65939.0,0.67603783]
[1722363017951,0.02155073,65940.0,65939.0,0.67603783]
[1722363018156,0.00951589,65940.0,65939.0,0.37272783]
[1722363018361,0.00951589,65940.0,65939.0,0.67603783]
[1722363018774,0.02155073,65942.0,65939.0,0.22107283]
[1722363018990,0.00951589,65940.0,65939.0,0.03814833]
[1722363019211,0.00951589,65940.0,65939.0,0.18980333]
[1722363019413,0.00083,65944.0,65939.0,0.18980333]
[1722363019414,0.00951589,65942.0,65941.0,0.454951]
[1722363019588,0.00083,65944.0,65941.0,0.454951]
[1722363019589,0.00083,65944.0,65943.0,0.75823]
[1722363019813,0.00083,65944.0,65943.0,1.17972]
[1722363020024,0.00083,65944.0,65943.0,1.33035304]
[1722363020190,0.00083,65944.0,65943.0,1.47275304]
[1722363020390,0.00083,65944.0,65943.0,1.24058939]
[1722363020620,0.00083,65944.0,65943.0,1.16946104]
[1722363020863,0.00083,65944.0,65943.0,1.47275304]
[1722363021452,0.00083,65944.0,65943.0,1.48675304]
[1722363021650,0.00083,65944.0,65943.0,1.47275304]
[1722363022086,0.00083,65944.0,65943.0,0.86616904]
[1722363022512,0.00083,65944.0,65943.0,1.16946104]
[1722363022717,0.00083,65944.0,65943.0,1.47275304]
[1722363023120,0.00083,65944.0,65943.0,1.18346104]
[1722363023946,0.01083,65944.0,65943.0,0.56287704]
[1722363024149,0.00083,65944.0,65943.0,0.56287704]
[1722363024351,0.00083,65944.0,65943.0,0.88016904]
[1722363025209,0.02238073,65944.0,65943.0,0.26883104]
[1722363025418,0.02238073,65944.0,65943.0,0.18874659]
[1722363026028,0.17402373,65944.0,65943.0,0.01511355]
[1722363026236,0.17519873,65942.0,65941.0,0.000913]
[1722363026465,0.17519873,65942.0,65941.0,0.16608081]
[1722363026466,0.47849473,65942.0,65941.0,0.16608081]
[1722363026672,0.47849473,65942.0,65941.0,0.01544777]
[1722363026893,0.17519873,65942.0,65941.0,0.01544777]
[1722363027514,0.47849473,65942.0,65941.0,0.01544777]
[1722363027726,0.47849473,65942.0,65941.0,0.02944777]
[1722363027932,1.22598673,65942.0,65941.0,0.02944777]
[1722363028142,1.22598673,65942.0,65941.0,0.014913]
[1722363028819,1.32407461,65942.0,65941.0,0.014913]
[1722363029462,1.62737061,65942.0,65941.0,0.014913]
[1722363029743,1.62737061,65942.0,65941.0,0.000913]
[1722363029983,0.71748261,65942.0,65941.0,0.000913]
[1722363030499,1.32407461,65942.0,65941.0,0.000913]
[1722363030726,1.42407461,65942.0,65941.0,0.000913]
[1722363030936,1.76684614,65942.0,65941.0,0.000913]
[1722363031408,1.76684614,65942.0,65941.0,0.007913]
[1722363031626,1.77705297,65942.0,65941.0,0.000913]
[1722363031831,1.97143801,65942.0,65941.0,0.000913]
[1722363032255,1.95143801,65942.0,65941.0,0.000913]
[1722363032962,1.92768601,65942.0,65941.0,0.000913]
[1722363033197,1.95143761,65942.0,65941.0,0.000913]
[1722363033457,1.93384198,65942.0,65941.0,0.000913]
[1722363033711,1.93684198,65942.0,65941.0,0.001913]
[1722363033958,1.42629428,65942.0,65941.0,0.001913]
[1722363034717,1.42329428,65942.0,65941.0,0.000913]
[1722363035135,1.42629428,65942.0,65941.0,0.000913]
[1722363035344,1.72959028,65942.0,65941.0,0.000913]
[1722363035800,1.79166463,65942.0,65941.0,0.000913]
[1722363036205,1.78866463,65942.0,65941.0,0.000913]
[1722363036631,1.45004543,65942.0,65941.0,0.000913]
[1722363036836,1.42629428,65942.0,65941.0,0.000913]
[1722363037875,1.42329428,65942.0,65941.0,0.000913]
[1722363038285,1.42629428,65942.0,65941.0,0.000913]
[1722363038644,1.45004428,65942.0,65941.0,0.000913]
[1722363038856,1.66875828,65942.0,65941.0,0.000913]
[1722363039063,1.97205428,65942.0,65941.0,0.000913]
[1722363039488,2.64044106,65942.0,65941.0,0.000913]
[1722363039800,2.33714506,65942.0,65941.0,0.000913]
[1722363040416,1.97205428,65942.0,65941.0,0.000913]
[1722363040653,1.95205428,65942.0,65941.0,0.000913]
[1722363040869,2.27535028,65942.0,65941.0,0.000913]
[1722363042735,2.27535028,65942.0,65918.0,0.00073905]
[1722363042736,0.78205573,65919.0,65918.0,0.00073905]
[1722363042893,0.78205573,65919.0,65918.0,0.04460932]
[1722363042894,1.08545773,65919.0,65918.0,0.04460932]
[1722363043088,1.08545773,65919.0,65918.0,0.00696267]
[1722363043291,0.78210273,65915.0,65914.0,0.000913]
[1722363043569,1.08552373,65915.0,65914.0,0.000913]
[1722363043778,1.48173141,65915.0,65914.0,0.000913]
[1722363043892,1.17831041,65915.0,65914.0,0.000913]
[1722363045748,1.17831041,65915.0,65914.0,0.014913]
[1722363045749,1.48173141,65915.0,65914.0,0.014913]
[1722363045942,1.64693141,65915.0,65914.0,0.014913]
[1722363046367,1.80756445,65915.0,65914.0,0.014913]
[1722363046575,2.18698545,65915.0,65914.0,0.014913]
[1722363046782,1.87356445,65915.0,65914.0,0.014913]
[1722363048425,1.87356445,65915.0,65914.0,0.0128007]
[1722363048831,1.72293141,65915.0,65914.0,0.0128007]
[1722363049066,1.18552373,65915.0,65914.0,0.0128007]
[1722363050084,1.95299877,65915.0,65914.0,0.0128007]
[1722363050289,1.74603431,65915.0,65914.0,0.0128007]
[1722363050866,1.73603431,65915.0,65914.0,0.0128007]
[1722363051071,1.74603431,65915.0,65914.0,0.0128007]
[1722363051722,1.73603431,65915.0,65914.0,0.0128007]
[1722363052324,1.74603431,65915.0,65914.0,0.0128007]
[1722363052527,1.58540127,65915.0,65914.0,0.0128007]
[1722363053255,1.28198027,65915.0,65914.0,0.0128007]
[1722363053464,0.47868173,65915.0,65914.0,0.0128007]
[1722363053811,0.78210273,65915.0,65914.0,0.02151726]
[1722363054015,0.47868173,65915.0,65914.0,0.0137137]
[1722363054221,0.02355073,65915.0,65914.0,0.02148507]
[1722363054420,0.02355073,65915.0,65914.0,0.02923313]
[1722363054624,0.02355073,65915.0,65914.0,0.0137137]
[1722363054831,0.02355073,65915.0,65914.0,0.02146176]
[1722363054832,0.17526073,65915.0,65914.0,0.02146176]
[1722363055038,0.02355073,65915.0,65914.0,0.02146176]
[1722363055450,0.02355073,65915.0,65914.0,0.0137137]
[1722363056076,0.17526073,65915.0,65914.0,0.0137137]
[1722363056794,0.02355073,65915.0,65914.0,0.0137137]
[1722363057016,0.00951589,65916.0,65914.0,0.25963467]
[1722363057223,0.00951589,65916.0,65915.0,0.15244905]
[1722363057424,0.00951589,65915.0,65914.0,0.26545288]
[1722363057779,0.00951589,65915.0,65914.0,0.25768151]
[1722363058012,0.00951589,65915.0,65914.0,0.24488081]
[1722363058216,0.02155073,65915.0,65914.0,0.25888081]
[1722363058429,0.02355073,65915.0,65914.0,0.25888081]
[1722363058632,0.02355073,65915.0,65914.0,0.2772428]
[1722363058984,0.02455073,65915.0,65914.0,0.2912428]
[1722363060309,0.02255073,65915.0,65914.0,0.2912428]
[1722363060490,0.001,65915.0,65914.0,0.4429548]
[1722363060683,0.01155073,65916.0,65915.0,0.52077005]
[1722363060889,0.02155073,65916.0,65915.0,0.26705021]
[1722363061116,0.02355073,65916.0,65915.0,0.0649]
[1722363061279,0.47867473,65916.0,65915.0,0.0649]
[1722363061477,0.02355073,65916.0,65915.0,0.0649]
[1722363061681,0.00951589,65916.0,65915.0,0.0649]
[1722363061921,0.02155073,65916.0,65915.0,0.11255858]
[1722363062121,0.00951589,65916.0,65915.0,0.11329763]
[1722363062318,0.02255073,65916.0,65915.0,0.12729763]
[1722363062519,0.02255073,65916.0,65915.0,0.12655858]
[1722363062722,0.001,65916.0,65915.0,1.03574362]
[1722363062931,0.001,65916.0,65915.0,1.36519885]
[1722363063133,0.001,65916.0,65915.0,1.5742736]
[1722363063369,0.001,65916.0,65915.0,1.91655387]
[1722363063567,0.001,65916.0,65915.0,1.99264008]
[1722363063716,0.00951589,65929.0,65928.0,0.906302]
[1722363063915,0.00951589,65929.0,65928.0,1.09446981]
[1722363064114,0.00951589,65929.0,65928.0,0.79110881]
[1722363064767,0.01203484,65934.0,65930.0,0.303352]
[1722363064768,0.00951589,65932.0,65930.0,0.303352]
[1722363064954,0.00951589,65932.0,65931.0,0.98039667]
[1722363065710,0.01203484,65934.0,65932.0,0.15167]
[1722363065914,0.00083,65941.0,65931.0,0.023]
[1722363065915,0.02155073,65932.0,65931.0,0.023]
[1722363066113,0.02155073,65932.0,65928.0,0.16243477]
[1722363066114,0.02155073,65929.0,65928.0,0.16243477]
[1722363066241,0.00951589,65929.0,65928.0,0.16243477]
[1722363066443,0.00951589,65931.0,65928.0,0.36076945]
[1722363066642,0.00951589,65930.0,65929.0,0.15241705]
[1722363066822,0.00951589,65930.0,65929.0,0.05454915]
[1722363067029,0.02155073,65930.0,65929.0,0.20518219]
[1722363067614,0.02155073,65930.0,65929.0,0.15137209]
[1722363067767,0.03534099,65930.0,65929.0,0.15063304]
[1722363068433,0.03634099,65930.0,65929.0,0.16463304]
[1722363068607,0.03634099,65930.0,65929.0,0.172337]
[1722363068915,0.03634099,65930.0,65929.0,0.158337]
[1722363069124,0.49236899,65930.0,65929.0,0.02170396]
[1722363069477,0.03734099,65930.0,65929.0,0.02525778]
[1722363069689,0.18901699,65930.0,65929.0,0.02525778]
[1722363069919,0.79572099,65930.0,65929.0,0.014]
[1722363070147,1.08728273,65930.0,65929.0,0.014]
[1722363070585,0.78194073,65929.0,65928.0,0.01453477]
[1722363070813,0.78194073,65929.0,65914.0,0.000913]
[1722363070814,0.32697173,65915.0,65914.0,0.000913]
[1722363071028,0.78210273,65915.0,65914.0,0.000913]
[1722363071244,1.08552373,65915.0,65914.0,0.01087479]
[1722363071456,1.23262373,65915.0,65914.0,0.000913]
[1722363071908,0.47868173,65915.0,65914.0,0.000913]
[1722363072139,0.02255073,65915.0,65914.0,0.014913]
[1722363072349,0.02255073,65915.0,65914.0,0.0162743]
[1722363072564,0.17626073,65915.0,65914.0,0.02402236]
[1722363072764,0.17626073,65915.0,65914.0,0.00866106]
[1722363072967,0.17626073,65915.0,65914.0,0.000913]
[1722363073178,0.47968173,65915.0,65914.0,0.000913]
[1722363073759,0.17626073,65915.0,65914.0,0.000913]
[1722363073999,0.02455073,65915.0,65914.0,0.000913]
[1722363074204,0.17626073,65915.0,65914.0,0.000913]
[1722363074404,0.17726073,65915.0,65914.0,0.014913]
[1722363074551,0.47968173,65915.0,65914.0,0.000913]
[1722363074758,0.47968173,65915.0,65914.0,0.014913]
[1722363074951,0.48068173,65915.0,65914.0,0.014913]
[1722363075216,0.17726073,65915.0,65914.0,0.014913]
[1722363075425,0.48068173,65915.0,65914.0,0.014913]
[1722363075811,1.08752373,65915.0,65914.0,0.014913]
[1722363076065,1.3301411,65915.0,65914.0,0.014913]
[1722363076434,1.6335621,65915.0,65914.0,0.014913]
[1722363077004,1.65732139,65915.0,65914.0,0.014913]
[1722363077202,1.80795443,65915.0,65914.0,0.014913]
[1722363077425,1.90795443,65915.0,65914.0,0.014913]
[1722363077583,1.92912296,65915.0,65914.0,0.014913]
[1722363077991,2.41323828,65915.0,65914.0,0.014913]
[1722363078193,0.02355073,65889.0,65888.0,0.00073905]
[1722363078404,0.02355073,65889.0,65886.0,0.01453477]
[1722363078405,0.16380984,65887.0,65886.0,0.01453477]
[1722363078617,0.78042573,65887.0,65886.0,0.01453477]
[1722363078821,0.47687573,65887.0,65886.0,0.02236519]
[1722363079024,0.78242573,65887.0,65886.0,0.01453477]
[1722363079221,1.08597573,65887.0,65886.0,0.01453477]
[1722363079423,0.17335073,65876.0,65875.0,0.009394]
[1722363079636,0.17335073,65876.0,65875.0,0.03179156]
[1722363079637,0.47695073,65876.0,65875.0,0.03179156]
[1722363079846,0.47695073,65876.0,65875.0,0.04891202]
[1722363080049,0.47695073,65876.0,65875.0,0.04104923]
[1722363080447,0.02155073,65876.0,65875.0,0.04104923]
[1722363080651,0.02155073,65876.0,65875.0,0.04891202]
[1722363081050,0.02255073,65876.0,65875.0,0.04804923]
[1722363081691,0.17435073,65876.0,65875.0,0.04804923]
[1722363081870,0.17635073,65876.0,65875.0,0.04804923]
[1722363082080,0.78355073,65876.0,65875.0,0.04804923]
[1722363082283,0.78355073,65876.0,65875.0,0.03092877]
[1722363082871,0.02455073,65876.0,65875.0,0.03092877]
[1722363083082,0.02255073,65876.0,65875.0,0.03092877]
[1722363083286,0.17435073,65876.0,65875.0,0.03092877]
[1722363083511,0.02255073,65876.0,65875.0,0.03092877]
[1722363084614,0.17435073,65876.0,65875.0,0.03092877]
[1722363084854,0.02255073,65876.0,65875.0,0.016394]
[1722363085087,0.02255073,65876.0,65875.0,0.02425679]
[1722363085331,0.02255073,65876.0,65875.0,0.016394]
[1722363085565,0.01255073,65876.0,65875.0,0.016394]
[1722363085799,0.02255073,65876.0,65875.0,0.18393894]
[1722363086022,0.02255073,65876.0,65875.0,0.16702704]
[1722363086251,0.01255073,65876.0,65875.0,0.17488983]
[1722363086489,0.02255073,65876.0,65875.0,0.20765121]
[1722363087700,0.011,65876.0,65875.0,0.20765121]
[1722363087905,0.011,65876.0,65875.0,0.80565821]
[1722363088131,0.011,65876.0,65875.0,0.82865821]
[1722363088558,0.001,65876.0,65875.0,0.82865821]
[1722363088755,0.001,65876.0,65875.0,1.13226321]
[1722363088960,0.001,65876.0,65875.0,0.82865821]
[1722363089169,0.001,65876.0,65875.0,0.52505321]
[1722363089447,0.011,65876.0,65875.0,0.37325121]
[1722363089908,0.02255073,65876.0,65875.0,0.35025121]
[1722363090114,0.17435073,65876.0,65875.0,0.02425679]
[1722363090342,0.17635073,65876.0,65875.0,0.02425679]
[1722363090571,0.17635073,65876.0,65875.0,0.016394]
[1722363091036,0.47995073,65876.0,65875.0,0.016394]
[1722363091734,0.17635073,65876.0,65875.0,0.016394]
[1722363091925,0.02255073,65876.0,65875.0,0.016394]
[1722363092288,0.47995073,65876.0,65875.0,0.016394]
[1722363092482,0.02455073,65876.0,65875.0,0.016394]
[1722363092726,0.17435073,65876.0,65875.0,0.016394]
[1722363093263,0.02255073,65876.0,65875.0,0.016394]
[1722363093691,0.01051589,65876.0,65875.0,0.19101555]
[1722363093860,0.01051589,65876.0,65875.0,0.17410355]
[1722363094327,0.02255073,65876.0,65875.0,0.17410355]
[1722363095592,0.01051589,65876.0,65875.0,0.17410355]
[1722363095934,0.01051589,65876.0,65875.0,0.62951055]
[1722363096143,0.001,65876.0,65875.0,1.07701555]
[1722363096343,0.001,65876.0,65875.0,1.40362055]
[1722363096544,0.001,65876.0,65875.0,1.81567482]
[1722363096747,0.001,65876.0,65875.0,1.60362055]
[1722363096950,0.001,65876.0,65875.0,1.64878956]
[1722363097161,0.001,65876.0,65875.0,1.94905994]
[1722363097412,0.001,65876.0,65875.0,1.95745293]
[1722363097577,0.001,65876.0,65875.0,1.83131354]
[1722363097777,0.00951589,65887.0,65886.0,0.151777]
[1722363098007,0.02155073,65887.0,65886.0,0.18816781]
[1722363098320,0.02155073,65887.0,65886.0,0.19521519]
[1722363098647,0.00951589,65887.0,65886.0,0.25245071]
[1722363099054,0.02155073,65887.0,65886.0,0.25245071]
[1722363099254,0.00951589,65887.0,65886.0,0.40422771]
[1722363099462,0.00951589,65893.0,65892.0,0.455289]
[1722363099694,0.48771589,65895.0,65894.0,0.758792]
[1722363099892,0.48771589,65895.0,65894.0,0.62044281]
[1722363100083,0.48771589,65895.0,65894.0,0.172194]
[1722363100315,0.48771589,65895.0,65894.0,0.37888788]
[1722363100605,0.4782,65895.0,65894.0,0.68240488]
[1722363100920,0.00951589,65897.0,65894.0,0.39288788]
[1722363101164,0.00951589,65902.0,65900.0,0.151744]
[1722363101444,0.01203484,65906.0,65901.0,0.19674091]
[1722363101445,0.00951589,65903.0,65901.0,0.19674091]
[1722363101564,0.00951589,65903.0,65902.0,0.17474]
[1722363101769,0.02155073,65909.0,65902.0,0.49865282]
[1722363102057,0.002,65913.0,65902.0,0.49865282]
[1722363102058,0.01155073,65913.0,65903.0,0.20338095]
[1722363102235,0.02155073,65910.0,65909.0,0.151724]
[1722363102366,0.00951589,65910.0,65909.0,0.62033981]
[1722363102576,0.00951589,65910.0,65909.0,0.70311143]
[1722363102996,0.002,65917.0,65909.0,0.70311143]
[1722363102997,0.01034589,65915.0,65914.0,0.151712]
[1722363103213,0.02238073,65915.0,65914.0,0.17363304]
[1722363103413,0.02438073,65915.0,65914.0,0.22983702]
[1722363103827,0.02238073,65915.0,65914.0,0.22983702]
[1722363104047,0.02438073,65915.0,65914.0,0.22983702]
[1722363104459,0.02238073,65915.0,65914.0,0.22983702]
[1722363105299,0.02238073,65915.0,65914.0,0.24383702]
[1722363106007,0.01034589,65915.0,65914.0,0.39554902]
[1722363106247,0.00083,65915.0,65914.0,0.69917363]
[1722363106450,0.00083,65915.0,65914.0,0.69897402]
[1722363106648,0.00083,65915.0,65914.0,1.00239902]
[1722363107116,0.00083,65915.0,65914.0,0.69897402]
[1722363107421,0.00083,65915.0,65914.0,0.68497402]
[1722363107602,0.00083,65915.0,65914.0,0.98839902]
[1722363107809,0.00083,65915.0,65914.0,1.00239902]
[1722363108105,0.00083,65915.0,65914.0,0.98839902]
[1722363108726,0.00083,65915.0,65914.0,1.00239902]
[1722363109293,0.00081515,65926.0,65925.0,0.455062]
[1722363109486,0.0601,65940.0,65925.0,0.32406781]
[1722363109487,0.002,65939.0,65925.0,0.32406781]
[1722363109806,0.151677,65930.0,65926.0,0.15063304]
[1722363110032,0.002,65931.0,65926.0,0.15063304]
[1722363110033,0.002,65928.0,65927.0,0.0172112]
[1722363110211,0.002,65931.0,65927.0,0.16784424]
[1722363110416,0.002,65929.0,65928.0,0.18187776]
[1722363110621,0.002,65929.0,65928.0,0.18958466]
[1722363111739,0.002,65929.0,65928.0,0.20358466]
[1722363112080,0.002,65931.0,65928.0,0.18958466]
[1722363112283,0.002,65935.0,65929.0,0.03698084]
[1722363112497,0.002,65940.0,65932.0,0.15167]
[1722363112704,0.152481,65941.0,65933.0,0.17363304]
[1722363112705,0.002,65935.0,65933.0,0.17363304]
[1722363113067,0.002,65934.0,65933.0,0.00865374]
[1722363113268,0.002,65935.0,65933.0,0.00865374]
[1722363113401,0.002,65935.0,65934.0,0.01748655]
[1722363113604,0.002,65935.0,65932.0,0.01453477]
[1722363113605,0.153669,65933.0,65932.0,0.01453477]
[1722363113875,0.523607,65933.0,65932.0,0.01453477]
[1722363114081,0.220269,65933.0,65932.0,0.01453477]
[1722363114344,0.0686,65933.0,65932.0,0.01453477]
[1722363114944,0.304133,65941.0,65932.0,0.01453477]
[1722363114945,0.002,65939.0,65932.0,0.16516781]
[1722363115168,0.002,65934.0,65933.0,0.16714982]
[1722363115355,0.002,65935.0,65933.0,0.17484203]
[1722363115528,0.002,65935.0,65934.0,0.01993768]
[1722363115731,0.002,65934.0,65933.0,0.00769221]
[1722363115934,0.002,65933.0,65932.0,0.02653477]
[1722363116135,0.002,65933.0,65932.0,0.17716781]
[1722363116338,0.002,65933.0,65932.0,0.19498949]
[1722363116536,0.002,65933.0,65932.0,0.02653477]
[1722363116537,0.153669,65933.0,65932.0,0.02653477]
[1722363116721,0.002,65933.0,65932.0,0.02653477]
[1722363117328,0.002,65935.0,65932.0,0.16516781]
[1722363117557,0.002,65935.0,65933.0,0.03051678]
[1722363117759,0.002,65936.0,65933.0,0.03051678]
[1722363117941,0.002,65938.0,65934.0,0.15063304]
[1722363118141,0.00083,65944.0,65934.0,0.15063304]
[1722363118142,0.002,65939.0,65936.0,0.151661]
[1722363118450,0.002,65939.0,65936.0,0.15063304]
[1722363118659,0.00083,65944.0,65937.0,0.20089836]
[1722363118873,0.002,65942.0,65938.0,0.023]
[1722363119073,0.002,65943.0,65940.0,0.151653]
[1722363119272,0.002,65943.0,65940.0,0.35668471]
[1722363119479,0.00083,65944.0,65940.0,0.35668471]
[1722363119727,0.00083,65944.0,65940.0,0.20503171]
[1722363120087,0.00283,65941.0,65940.0,0.20503171]
[1722363120264,0.00083,65941.0,65940.0,0.20503171]
[1722363121712,0.00083,65941.0,65940.0,0.35668471]
[1722363121913,0.00083,65941.0,65940.0,0.96329671]
[1722363122474,0.00083,65941.0,65940.0,1.06019671]
[1722363122674,0.00083,65941.0,65940.0,1.04619671]
[1722363122880,0.00083,65941.0,65940.0,0.28793171]
[1722363123080,0.00083,65941.0,65940.0,0.75689071]
[1722363123476,0.00083,65941.0,65940.0,0.45358471]
[1722363124062,0.00083,65941.0,65940.0,0.19603171]
[1722363124514,0.457781,65941.0,65940.0,0.0168639]
[1722363124685,0.002,65938.0,65932.0,0.0798]
[1722363125025,0.002,65934.0,65933.0,0.00769221]
[1722363125471,0.002,65937.0,65933.0,0.00769221]
[1722363125831,0.151655,65939.0,65932.0,0.16516781]
[1722363126078,0.304132,65941.0,65934.0,0.15832231]
[1722363126079,0.00083,65941.0,65934.0,0.15832231]
[1722363126313,0.06844141,65940.0,65934.0,0.15063304]
[1722363126559,0.06844141,65940.0,65937.0,0.151659]
[1722363126796,0.00081515,65939.0,65938.0,0.17363304]
[1722363127033,0.00081515,65939.0,65938.0,0.15063304]
[1722363127281,0.00081515,65939.0,65938.0,0.15831056]
[1722363127494,0.00081515,65939.0,65938.0,0.18131056]
[1722363127725,0.00283,65941.0,65938.0,0.18131056]
[1722363127928,0.00083,65941.0,65939.0,0.07578963]
[1722363128130,0.00083,65941.0,65940.0,0.15063304]
[1722363128339,0.15448,65941.0,65940.0,0.00767164]
[1722363128510,0.08085178,65941.0,65940.0,0.01719732]
[1722363128741,0.08085178,65941.0,65940.0,0.00767164]
[1722363128742,0.23250178,65941.0,65940.0,0.00767164]
[1722363128913,0.002,65940.0,65939.0,0.01453477]
[1722363129194,0.18917294,65940.0,65939.0,0.02853477]
[1722363129398,0.18917294,65940.0,65939.0,0.01453477]
[1722363129399,0.03551994,65940.0,65939.0,0.01453477]
[1722363129620,0.03551994,65940.0,65939.0,0.16516781]
[1722363129887,0.03551994,65940.0,65939.0,0.18935917]
[1722363130118,0.00083,65941.0,65939.0,0.18935917]
[1722363130362,0.03645981,65940.0,65939.0,0.03872613]
[1722363130611,0.03794496,65940.0,65939.0,0.16476068]
[1722363130852,0.00083,65941.0,65940.0,0.758265]
[1722363131121,0.00083,65941.0,65940.0,1.07440866]
[1722363131346,0.00083,65941.0,65940.0,0.32477426]
[1722363131589,0.00083,65941.0,65940.0,0.30177426]
[1722363131814,0.03673733,65941.0,65940.0,0.45342726]
[1722363132015,0.00083,65941.0,65940.0,1.08303926]
[1722363132220,0.00083,65941.0,65940.0,0.97100471]
[1722363132397,0.00083,65941.0,65940.0,1.1870618]
[1722363132635,0.00083,65941.0,65940.0,1.1730618]
[1722363132905,0.00083,65941.0,65940.0,0.83874097]
[1722363133110,0.00283,65941.0,65940.0,0.47642435]
[1722363133285,0.00083,65941.0,65940.0,0.36978197]
[1722363133651,0.00083,65941.0,65940.0,0.34678197]
[1722363133847,0.00083,65941.0,65940.0,0.30177135]
[1722363134068,0.00283,65941.0,65940.0,0.17573971]
[1722363134424,0.03480318,65941.0,65940.0,0.30178177]
[1722363134633,0.03480318,65941.0,65940.0,0.36079239]
[1722363135034,0.03480318,65941.0,65940.0,1.09704677]
[1722363135443,0.03480318,65941.0,65940.0,1.17316099]
[1722363135869,0.03480318,65941.0,65940.0,1.18716099]
[1722363136073,0.03480318,65941.0,65940.0,0.36689162]
[1722363136287,0.03480318,65941.0,65940.0,0.2853057]
[1722363136538,0.03480318,65941.0,65940.0,0.2993057]
[1722363136957,0.03680318,65941.0,65940.0,0.34438243]
[1722363137177,0.03480318,65941.0,65940.0,0.40750954]
[1722363137384,0.03480318,65941.0,65940.0,0.43008004]
[1722363137565,0.03480318,65941.0,65940.0,0.45254703]
[1722363137895,0.03480318,65941.0,65940.0,0.36243281]
[1722363138099,0.03480318,65941.0,65940.0,0.45254703]
[1722363138300,0.03480318,65941.0,65940.0,0.47507559]
[1722363138583,0.03480318,65941.0,65940.0,0.22239075]
[1722363138719,0.03480318,65941.0,65940.0,0.28529838]
[1722363139097,0.03480318,65941.0,65940.0,0.29929838]
[1722363139288,0.03480318,65941.0,65940.0,0.28529838]
[1722363139492,0.18845318,65941.0,65940.0,0.41217419]
[1722363139735,0.03680318,65941.0,65940.0,0.45456042]
[1722363140149,0.03680318,65941.0,65940.0,0.46856042]
[1722363140263,0.03680318,65941.0,65940.0,0.34168461]
[1722363140493,0.03480318,65941.0,65940.0,0.34168461]
[1722363140927,0.03680318,65941.0,65940.0,0.34168461]
[1722363141740,0.03680318,65941.0,65940.0,0.35569075]
[1722363141952,0.03680318,65941.0,65940.0,0.14867148]
[1722363141953,0.79505518,65941.0,65940.0,0.14867148]
[1722363142151,0.79505518,65941.0,65940.0,0.13337206]
[1722363142152,1.36278015,65941.0,65940.0,0.13337206]
[1722363142363,1.36278015,65941.0,65940.0,0.014]
[1722363142564,1.36278015,65941.0,65940.0,0.0592465]
[1722363142565,1.66608115,65941.0,65940.0,0.0592465]
[1722363142773,1.66608115,65941.0,65940.0,0.014]
[1722363142979,1.68983048,65941.0,65940.0,0.014]
[1722363143182,2.17376452,65941.0,65940.0,0.014]
[1722363143397,2.27376452,65941.0,65940.0,0.014]
[1722363143643,1.95870422,65941.0,65940.0,0.014]
[1722363143877,1.48652948,65941.0,65940.0,0.014]
[1722363144132,1.48452948,65941.0,65940.0,0.014]
[1722363144378,1.95860665,65941.0,65940.0,0.014]
[1722363145333,1.49467261,65941.0,65940.0,0.014]
[1722363145569,0.760322,65935.0,65934.0,0.09061182]
[1722363145808,1.21844815,65935.0,65934.0,0.11099948]
[1722363146047,0.91511915,65935.0,65934.0,0.02038766]
[1722363146283,0.60979015,65935.0,65934.0,0.11099948]
[1722363146789,0.30846115,65935.0,65934.0,0.11823537]
[1722363147016,0.30846115,65935.0,65934.0,0.02962355]
[1722363147249,0.15479715,65935.0,65934.0,0.29352137]
[1722363147450,0.03397318,65935.0,65934.0,0.15786893]
[1722363147684,0.03397318,65935.0,65934.0,0.7389241]
[1722363148227,0.03397318,65935.0,65934.0,1.0422571]
[1722363148462,0.03397318,65935.0,65934.0,0.7389241]
[1722363148689,0.03397318,65935.0,65934.0,0.7439241]
[1722363149149,0.03397318,65935.0,65934.0,1.2432678]
[1722363149381,0.03397318,65935.0,65934.0,1.3188678]
[1722363149620,0.03397318,65935.0,65934.0,1.3418678]
[1722363149876,0.00083,65941.0,65940.0,0.768265]
[1722363150114,0.00083,65941.0,65940.0,2.02369449]
[1722363150337,0.00083,65941.0,65940.0,2.03181503]
[1722363150596,0.00083,65941.0,65940.0,2.54403103]
[1722363150838,0.00083,65941.0,65940.0,2.55392611]
[1722363151951,0.00083,65941.0,65940.0,2.47857895]
[1722363152184,0.00083,65941.0,65940.0,2.49257895]
[1722363152427,0.00083,65941.0,65940.0,2.46857895]
[1722363152670,0.00083,65941.0,65940.0,2.47857895]
[1722363153290,0.00083,65941.0,65940.0,2.49857895]
[1722363153496,0.00083,65941.0,65940.0,2.51257895]
[1722363153696,0.00083,65941.0,65940.0,2.49857895]
[1722363154106,0.00083,65941.0,65940.0,2.17757535]
[1722363154316,0.00083,65941.0,65940.0,2.49257788]
[1722363155076,0.00083,65941.0,65940.0,2.51528472]
[1722363155276,0.00083,65941.0,65940.0,2.50074995]
[1722363155482,0.00083,65941.0,65940.0,2.48674995]
[1722363155822,0.00083,65941.0,65940.0,2.48074995]
[1722363156167,0.00083,65941.0,65940.0,2.46674709]
[1722363156530,0.00083,65941.0,65940.0,2.48632303]
[1722363156931,0.00083,65941.0,65940.0,2.47232303]
[1722363157352,0.00083,65941.0,65940.0,2.67542838]
[1722363157792,0.00083,65941.0,65940.0,2.69542838]
[1722363157926,0.00083,65941.0,65940.0,2.64230251]
[1722363158137,0.00083,65941.0,65940.0,2.55946402]
[1722363158720,0.00093,65954.0,65943.0,1.567624]
[1722363158893,0.00093,65954.0,65943.0,2.17080716]
[1722363159135,0.00093,65954.0,65943.0,2.17801661]
[1722363159548,0.00093,65954.0,65951.0,0.1]
[1722363159777,0.00093,65954.0,65953.0,1.280361]
[1722363160048,0.00093,65954.0,65953.0,1.55700018]